{"text_format":"1","workbook":"xlsx","n_sheets":8,"sheets":["Hoja1","Hoja3","CRONOGRAMA","PONDERACIÓN ACTIVIDADES","PONDERACIÓN OBJETIVOS","FORM_AVANCES","CONSULTA","BD_AVANCES"],"not_rendered":{"charts":0,"images":1,"macros":1,"external_links":0,"defined_names":0,"comments":1,"pivot_tables":0},"unopened":[],"bounds":{"document_bytes":16777216,"sheet_cells":100000,"rows_first":2000,"rows_last":500,"rows_between":2000,"halvings":0,"cell_chars":16384,"cell_head_chars":4096},"cells_cut":0,"cells_raw":0,"read":"whole","date_system":"1900"}

{"sheet":"Hoja1","index":0,"n_rows":29,"n_cols":10,"rows_kept":29,"cut":false,"hidden":false,"merged":[[2,2,4,8],[10,0,15,1],[28,2,28,7],[8,9,8,11],[30,2,31,7],[11,8,14,9],[17,8,20,9]]}
[]
[null,null,null,null,null,null,null,null,null,"IN-FR-01-2"]
[null,null,"CRONOGRAMA E INFORME DE ACTIVIDADES DE PROYECTO DE INVESTIGACIÓN",null,null,null,null,null,null,"Versión. 01"]
[null,null,null,null,null,null,null,null,null,"Fecha. 22-05-2019"]
[]
[]
[]
[]
[]
[]
["Empiece ingresando al botón \"Ingresar Objetivos\""]
[null,null,null,null,null,null,null,null,"Para inscripción y presentación de su proyecto sólo debe diligenciar los formularios: \"Ingresar Objetivos\", \"Ingresar Actividades\" y \"Cronograma\""]
[]
[]
[]
[]
[]
[null,null,null,null,null,null,null,null,"Para informes de avance de su proyecto debe diligenciar el formato \"Ingresar Avances del proyecto\""]
[]
[]
[]
[]
[]
[]
[]
[]
[]
[]
[null,null,"Esta aplicación le permitirá la creación del cronograma de actividades de su proyecto y la realización de los informes de avance."]

{"sheet":"Hoja3","index":1,"n_rows":15,"n_cols":13,"rows_kept":15,"cut":false,"hidden":true,"merged":[]}
[null,null,null,null,null,null,null,"responsables",null,null,null,null,"Artículo original en revista indexada"]
[null,"Facultad de Ciencias de Salud",null,"Personal (Contratada por la CUR)",null,{"$f":"+COUNTA(J2:J9)-COUNTBLANK(J2:J9)","v":0},{"$f":"+IF(H2=\"\",\"\",MAX($G$1:G1)+1)","v":""},{"$f":"+IF(CRONOGRAMA!C36<>\"\",CRONOGRAMA!C36,\"\")","v":""},1,{"$f":"+IFERROR(VLOOKUP(I2,$G$2:$H$9,2,FALSE),\"\")","v":""},null,null,"Artículo de revisión en revista indexada"]
[null,"Facultad de Ciencias Básicas e Ingeniería",null,"Equipos1  ",null,null,{"$f":"+IF(H3=\"\",\"\",MAX($G$1:G2)+1)","v":""},{"$f":"+IF(CRONOGRAMA!C44<>\"\",CRONOGRAMA!C44,\"\")","v":""},{"$f":"+I2+1","v":2},{"$f":"+IFERROR(VLOOKUP(I3,$G$2:$H$9,2,FALSE),\"\")","v":""},null,null,"Capítulo de libro derivado de investigación"]
[null,"Facultad de Ciencias Contables",null,"Materiales e insumos",null,null,{"$f":"+IF(H4=\"\",\"\",MAX($G$1:G3)+1)","v":""},{"$f":"+IF(CRONOGRAMA!C46<>\"\",CRONOGRAMA!C46,\"\")","v":""},{"$f":"+I3+1","v":3},"",null,null,"Libro derivado de investigación"]
[null,"Facultad de Ciencias Empresariales",null,"Servicios técnicos",null,null,{"$f":"+IF(H5=\"\",\"\",MAX($G$1:G4)+1)","v":""},{"$f":"+IF(CRONOGRAMA!C48<>\"\",CRONOGRAMA!C48,\"\")","v":""},4,"",null,null,"Artículo en Revista de divulgación con ISSN "]
[null,"Faculta de Medicina Veterinaria",null,"Transporte terrestre",null,null,{"$f":"+IF(H6=\"\",\"\",MAX($G$1:G5)+1)","v":""},{"$f":"+IF(CRONOGRAMA!C50<>\"\",CRONOGRAMA!C50,\"\")","v":""},5,"",null,null,"Ponencia en evento nacional"]
[null,"Facultad de Ciencias jurídicas y Contables",null,"Refrigerios",null,null,{"$f":"+IF(H7=\"\",\"\",MAX($G$1:G6)+1)","v":""},{"$f":"+IF(CRONOGRAMA!C51<>\"\",CRONOGRAMA!C51,\"\")","v":""},6,"",null,null,"Ponencia en evento internacional"]
[null,null,null,"Alojamiento",null,null,{"$f":"+IF(H8=\"\",\"\",MAX($G$1:G7)+1)","v":""},{"$f":"+IF(CRONOGRAMA!C55<>\"\",CRONOGRAMA!C55,\"\")","v":""},7,"",null,null,"Ponencia presentada a la comunidad académica Remington "]
[null,null,null,"Manutención ",null,null,{"$f":"+IF(H9=\"\",\"\",MAX($G$1:G8)+1)","v":""},{"$f":"+IF(CRONOGRAMA!C59<>\"\",CRONOGRAMA!C59,\"\")","v":""},8,"",null,null,"informe parcial a la mitad de ejecución del proyecto"]
[null,null,null,"Pasajes aéreos",null,null,null,null,null,null,null,null,"Informe del desempeño de lo(s) estudiante(s) vinculados al proyecto "]
[null,null,null,"Software",null,null,null,null,null,null,null,null,"Informe de finalización del proyecto "]
[null,null,null,"Mantenimiento"]
[null,null,null,"Material de difusión y promoción de resultados"]
[null,null,null,"Otros (discriminar)"]
[null,null,null,"Gastos administración"]

{"sheet":"CRONOGRAMA","index":2,"n_rows":62,"n_cols":24,"rows_kept":62,"cut":false,"hidden":false,"merged":[[33,1,33,2],[0,1,0,4],[0,7,1,13],[3,2,3,4],[2,3,2,4],[2,1,2,2],[1,1,1,4]]}
[null,"En esta sección diligencia la infomación general de su proyecto",null,null,null,null,null,"En esta sección debe completar la información del cronograma de su proyecto.\nDebe listar todos los objetivos con las respectivas actividades. \nEl objetivo y la actividad se listarán en la casilla y deberá seleccionarla. \nEsta lista se activa, sólo si ya diligenció los formularios anteriores"]
[null,"Información del proyecto"]
[null,"PORCENTAJE DE AVANCE DEL PROYECTO",null,{"$f":"+SUMPRODUCT(D8:D14,E8:E14)","v":0},null,null,"Objetivo específio asociado a la actividad","Actividad o estrategia metodológica empleada para el logro del objetivo específico","FECHA DEL ÚLTIMA AVANCE","Lugar de ejecución","Fecha de inicio de la actividad","Fecha finalización de la actividad","Responsable (Especificar: investigador principal, co-investigador, auxiliar de investigación)","Indicador (indique con que ítem va a medir esta actividad, ejemplo: Encuestas, muestras, personas)","Meta\n(indique la medida cuantitativa con la que va a medir la actividad)","Evidencia de la actividad\n(Indique como presentará la evidencia)","Presupuesto asociado al cumplimiento de la actividad","Rubro","Entidad financiadora del rubro ","Productos de obligatorio cumplimiento generados (anexe el documento final, en construcción o evidencia)","Otros productos (anexe la evidencia)","% de avance de la actividad","PONDERACIÓN"]
[null,"Título del proyecto",{"$f":"+'PONDERACIÓN OBJETIVOS'!F4","v":0},null,null,1,null,null,null,null,null,null,null,null,null,null,null,null,null,null,null,{"$f":"+IFERROR(DGET(BD_AVANCES!A:H,BD_AVANCES!$H$1,CRONOGRAMA!G3:I4),\"\")","v":""},{"$f":"+IFERROR(AVERAGEIFS('PONDERACIÓN ACTIVIDADES'!$G$6:$J$22,'PONDERACIÓN ACTIVIDADES'!$B$6:$E$22,CRONOGRAMA!H4),\"\")","v":""},{"$f":"+IFERROR(W4*V4,\"\")","v":""}]
[null,null,null,null,null,null,"Objetivo específio asociado a la actividad","Actividad o estrategia metodológica empleada para el logro del objetivo específico","FECHA DEL ÚLTIMA AVANCE","Lugar de ejecución","Fecha de inicio de la actividad","Fecha finalización de la actividad","Responsable (nombre completo). Especificar: investigador principal, co-investigador, auxiliar de investigación, estudiante de posgrado, otro.","Indicador","Meta","Evidencia de la actividad","Presupuesto asociado al cumplimiento de la actividad","Rubro","Entidad financiadora del rubro ","Productos de obligatorio cumplimiento generados (anexe el documento final, en construcción o evidencia)","Otros productos (anexe la evidencia)","% de avance de la actividad","% de avance del objetivo alq ue se asocia la actividad",{"$f":"+IFERROR(W5*V5,\"\")","v":""}]
[null,"Objetivo General",{"$f":"+'PONDERACIÓN OBJETIVOS'!F5","v":0},"% de avance del objetivo al que se asocia la actividad","POND OBJETIVO",{"$f":"+F4+1","v":2},null,null,{"$f":"+IF(IF(OR(G6=\"\",H6=\"\"),\"\",IFERROR(DMAX(BD_AVANCES!A:H,BD_AVANCES!$A$1,CRONOGRAMA!G5:H6),\"\"))=0,\"\",IF(OR(G6=\"\",H6=\"\"),\"\",IFERROR(DMAX(BD_AVANCES!A:H,BD_AVANCES!$A$1,CRONOGRAMA!G5:H6),\"\")))","v":""},null,null,null,null,null,null,null,null,null,null,null,null,{"$f":"+IFERROR(DGET(BD_AVANCES!A:H,BD_AVANCES!$H$1,CRONOGRAMA!G5:I6),\"\")","v":""},{"$f":"+IFERROR(AVERAGEIFS('PONDERACIÓN ACTIVIDADES'!$G$6:$J$22,'PONDERACIÓN ACTIVIDADES'!$B$6:$E$22,CRONOGRAMA!H6),\"\")","v":""},""]
[null,null,null,null,null,null,"Objetivo específio asociado a la actividad","Actividad o estrategia metodológica empleada para el logro del objetivo específico","FECHA DEL ÚLTIMA AVANCE","Lugar de ejecución","Fecha de inicio de la actividad","Fecha finalización de la actividad","Responsable (nombre completo). Especificar: investigador principal, co-investigador, auxiliar de investigación, estudiante de posgrado, otro.","Indicador","Meta","Evidencia de la actividad","Presupuesto asociado al cumplimiento de la actividad","Rubro","Entidad financiadora del rubro ","Productos de obligatorio cumplimiento generados (anexe el documento final, en construcción o evidencia)","Otros productos (anexe la evidencia)","% de avance de la actividad","% de avance del objetivo alq ue se asocia la actividad",""]
[null,"Objetivo específico_1",{"$f":"+'PONDERACIÓN ACTIVIDADES'!B2","v":0},{"$f":"+SUMIFS(X:X,G:G,C8)","v":0},{"$f":"+IFERROR(VLOOKUP(C8,'PONDERACIÓN OBJETIVOS'!$B$2:$C$6,2,FALSE),\"\")","v":""},{"$f":"+F6+1","v":3},null,null,{"$f":"+IF(IF(OR(G8=\"\",H8=\"\"),\"\",IFERROR(DMAX(BD_AVANCES!A:H,BD_AVANCES!$A$1,CRONOGRAMA!G7:H8),\"\"))=0,\"\",IF(OR(G8=\"\",H8=\"\"),\"\",IFERROR(DMAX(BD_AVANCES!A:H,BD_AVANCES!$A$1,CRONOGRAMA!G7:H8),\"\")))","v":""},null,null,null,null,null,null,null,null,null,null,null,null,{"$f":"+IFERROR(DGET(BD_AVANCES!A:H,BD_AVANCES!$H$1,CRONOGRAMA!G7:I8),\"\")","v":""},{"$f":"+IFERROR(AVERAGEIFS('PONDERACIÓN ACTIVIDADES'!$G$6:$J$22,'PONDERACIÓN ACTIVIDADES'!$B$6:$E$22,CRONOGRAMA!H8),\"\")","v":""},""]
[null,null,null,null,{"$f":"+IFERROR(VLOOKUP(C9,'PONDERACIÓN OBJETIVOS'!$B$2:$C$6,2,FALSE),\"\")","v":""},null,"Objetivo específio asociado a la actividad","Actividad o estrategia metodológica empleada para el logro del objetivo específico","FECHA DEL ÚLTIMA AVANCE","Lugar de ejecución","Fecha de inicio de la actividad","Fecha finalización de la actividad","Responsable (nombre completo). Especificar: investigador principal, co-investigador, auxiliar de investigación, estudiante de posgrado, otro.","Indicador","Meta","Evidencia de la actividad","Presupuesto asociado al cumplimiento de la actividad","Rubro","Entidad financiadora del rubro ","Productos de obligatorio cumplimiento generados (anexe el documento final, en construcción o evidencia)","Otros productos (anexe la evidencia)","% de avance de la actividad","% de avance del objetivo alq ue se asocia la actividad",""]
[null,"Objetivo específico_2",{"$f":"+'PONDERACIÓN ACTIVIDADES'!C2","v":0},{"$f":"+SUMIFS(X:X,G:G,C10)","v":0},{"$f":"+IFERROR(VLOOKUP(C10,'PONDERACIÓN OBJETIVOS'!$B$2:$C$6,2,FALSE),\"\")","v":""},{"$f":"+F8+1","v":4},null,null,{"$f":"+IF(IF(OR(G10=\"\",H10=\"\"),\"\",IFERROR(DMAX(BD_AVANCES!A:H,BD_AVANCES!$A$1,CRONOGRAMA!G9:H10),\"\"))=0,\"\",IF(OR(G10=\"\",H10=\"\"),\"\",IFERROR(DMAX(BD_AVANCES!A:H,BD_AVANCES!$A$1,CRONOGRAMA!G9:H10),\"\")))","v":""},null,null,null,null,null,null,null,null,null,null,null,null,{"$f":"+IFERROR(DGET(BD_AVANCES!A:H,BD_AVANCES!$H$1,CRONOGRAMA!G9:I10),\"\")","v":""},{"$f":"+IFERROR(AVERAGEIFS('PONDERACIÓN ACTIVIDADES'!$G$6:$J$22,'PONDERACIÓN ACTIVIDADES'!$B$6:$E$22,CRONOGRAMA!H10),\"\")","v":""},""]
[null,null,null,null,{"$f":"+IFERROR(VLOOKUP(C11,'PONDERACIÓN OBJETIVOS'!$B$2:$C$6,2,FALSE),\"\")","v":""},null,"Objetivo específio asociado a la actividad","Actividad o estrategia metodológica empleada para el logro del objetivo específico","FECHA DEL ÚLTIMA AVANCE","Lugar de ejecución","Fecha de inicio de la actividad","Fecha finalización de la actividad","Responsable (nombre completo). Especificar: investigador principal, co-investigador, auxiliar de investigación, estudiante de posgrado, otro.","Indicador","Meta","Evidencia de la actividad","Presupuesto asociado al cumplimiento de la actividad","Rubro","Entidad financiadora del rubro ","Productos de obligatorio cumplimiento generados (anexe el documento final, en construcción o evidencia)","Otros productos (anexe la evidencia)","% de avance de la actividad","% de avance del objetivo alq ue se asocia la actividad",""]
[null,"Objetivo específico_3",{"$f":"+'PONDERACIÓN ACTIVIDADES'!D2","v":0},{"$f":"+SUMIFS(X:X,G:G,C12)","v":0},{"$f":"+IFERROR(VLOOKUP(C12,'PONDERACIÓN OBJETIVOS'!$B$2:$C$6,2,FALSE),\"\")","v":""},{"$f":"+F10+1","v":5},null,null,{"$f":"+IF(IF(OR(G12=\"\",H12=\"\"),\"\",IFERROR(DMAX(BD_AVANCES!A:H,BD_AVANCES!$A$1,CRONOGRAMA!G11:H12),\"\"))=0,\"\",IF(OR(G12=\"\",H12=\"\"),\"\",IFERROR(DMAX(BD_AVANCES!A:H,BD_AVANCES!$A$1,CRONOGRAMA!G11:H12),\"\")))","v":""},null,null,null,null,null,null,null,null,null,null,null,null,{"$f":"+IFERROR(DGET(BD_AVANCES!A:H,BD_AVANCES!$H$1,CRONOGRAMA!G11:I12),\"\")","v":""},{"$f":"+IFERROR(AVERAGEIFS('PONDERACIÓN ACTIVIDADES'!$G$6:$J$22,'PONDERACIÓN ACTIVIDADES'!$B$6:$E$22,CRONOGRAMA!H12),\"\")","v":""},""]
[null,null,null,null,{"$f":"+IFERROR(VLOOKUP(C13,'PONDERACIÓN OBJETIVOS'!$B$2:$C$6,2,FALSE),\"\")","v":""},null,"Objetivo específio asociado a la actividad","Actividad o estrategia metodológica empleada para el logro del objetivo específico","FECHA DEL ÚLTIMA AVANCE","Lugar de ejecución","Fecha de inicio de la actividad","Fecha finalización de la actividad","Responsable (nombre completo). Especificar: investigador principal, co-investigador, auxiliar de investigación, estudiante de posgrado, otro.","Indicador","Meta","Evidencia de la actividad","Presupuesto asociado al cumplimiento de la actividad","Rubro","Entidad financiadora del rubro ","Productos de obligatorio cumplimiento generados (anexe el documento final, en construcción o evidencia)","Otros productos (anexe la evidencia)","% de avance de la actividad","% de avance del objetivo alq ue se asocia la actividad",""]
[null,"Objetivo específico_4",{"$f":"+'PONDERACIÓN ACTIVIDADES'!E2","v":0},{"$f":"+SUMIFS(X:X,G:G,C14)","v":0},{"$f":"+IFERROR(VLOOKUP(C14,'PONDERACIÓN OBJETIVOS'!$B$2:$C$6,2,FALSE),\"\")","v":""},{"$f":"+F12+1","v":6},null,null,{"$f":"+IF(IF(OR(G14=\"\",H14=\"\"),\"\",IFERROR(DMAX(BD_AVANCES!A:H,BD_AVANCES!$A$1,CRONOGRAMA!G13:H14),\"\"))=0,\"\",IF(OR(G14=\"\",H14=\"\"),\"\",IFERROR(DMAX(BD_AVANCES!A:H,BD_AVANCES!$A$1,CRONOGRAMA!G13:H14),\"\")))","v":""},null,null,null,null,null,null,null,null,null,null,null,null,{"$f":"+IFERROR(DGET(BD_AVANCES!A:H,BD_AVANCES!$H$1,CRONOGRAMA!G13:I14),\"\")","v":""},{"$f":"+IFERROR(AVERAGEIFS('PONDERACIÓN ACTIVIDADES'!$G$6:$J$22,'PONDERACIÓN ACTIVIDADES'!$B$6:$E$22,CRONOGRAMA!H14),\"\")","v":""},""]
[null,null,null,null,{"$f":"+IFERROR(VLOOKUP(C15,'PONDERACIÓN OBJETIVOS'!$B$2:$C$6,2,FALSE),\"\")","v":""},null,"Objetivo específio asociado a la actividad","Actividad o estrategia metodológica empleada para el logro del objetivo específico","FECHA DEL ÚLTIMA AVANCE","Lugar de ejecución","Fecha de inicio de la actividad","Fecha finalización de la actividad","Responsable (nombre completo). Especificar: investigador principal, co-investigador, auxiliar de investigación, estudiante de posgrado, otro.","Indicador","Meta","Evidencia de la actividad","Presupuesto asociado al cumplimiento de la actividad","Rubro","Entidad financiadora del rubro ","Productos de obligatorio cumplimiento generados (anexe el documento final, en construcción o evidencia)","Otros productos (anexe la evidencia)","% de avance de la actividad","% de avance del objetivo alq ue se asocia la actividad",""]
[null,"Fecha del acta de inicio",null,null,null,{"$f":"+F14+1","v":7},null,null,{"$f":"+IF(IF(OR(G16=\"\",H16=\"\"),\"\",IFERROR(DMAX(BD_AVANCES!A:H,BD_AVANCES!$A$1,CRONOGRAMA!G15:H16),\"\"))=0,\"\",IF(OR(G16=\"\",H16=\"\"),\"\",IFERROR(DMAX(BD_AVANCES!A:H,BD_AVANCES!$A$1,CRONOGRAMA!G15:H16),\"\")))","v":""},null,null,null,null,null,null,null,null,null,null,null,null,{"$f":"+IFERROR(DGET(BD_AVANCES!A:H,BD_AVANCES!$H$1,CRONOGRAMA!G15:I16),\"\")","v":""},{"$f":"+IFERROR(AVERAGEIFS('PONDERACIÓN ACTIVIDADES'!$G$6:$J$22,'PONDERACIÓN ACTIVIDADES'!$B$6:$E$22,CRONOGRAMA!H16),\"\")","v":""},""]
[null,null,null,null,null,null,"Objetivo específio asociado a la actividad","Actividad o estrategia metodológica empleada para el logro del objetivo específico","FECHA DEL ÚLTIMA AVANCE","Lugar de ejecución","Fecha de inicio de la actividad","Fecha finalización de la actividad","Responsable (nombre completo). Especificar: investigador principal, co-investigador, auxiliar de investigación, estudiante de posgrado, otro.","Indicador","Meta","Evidencia de la actividad","Presupuesto asociado al cumplimiento de la actividad","Rubro","Entidad financiadora del rubro ","Productos de obligatorio cumplimiento generados (anexe el documento final, en construcción o evidencia)","Otros productos (anexe la evidencia)","% de avance de la actividad","% de avance del objetivo alq ue se asocia la actividad",""]
[null,"Fecha proyectada de finalización del proyecto\n(meses contados a partir de firma del acta de inicio)",null,null,null,{"$f":"+F16+1","v":8},null,null,{"$f":"+IF(IF(OR(G18=\"\",H18=\"\"),\"\",IFERROR(DMAX(BD_AVANCES!A:H,BD_AVANCES!$A$1,CRONOGRAMA!G17:H18),\"\"))=0,\"\",IF(OR(G18=\"\",H18=\"\"),\"\",IFERROR(DMAX(BD_AVANCES!A:H,BD_AVANCES!$A$1,CRONOGRAMA!G17:H18),\"\")))","v":""},null,null,null,null,null,null,null,null,null,null,null,null,{"$f":"+IFERROR(DGET(BD_AVANCES!A:H,BD_AVANCES!$H$1,CRONOGRAMA!G17:I18),\"\")","v":""},{"$f":"+IFERROR(AVERAGEIFS('PONDERACIÓN ACTIVIDADES'!$G$6:$J$22,'PONDERACIÓN ACTIVIDADES'!$B$6:$E$22,CRONOGRAMA!H18),\"\")","v":""},""]
[null,null,null,null,null,null,"Objetivo específio asociado a la actividad","Actividad o estrategia metodológica empleada para el logro del objetivo específico","FECHA DEL ÚLTIMA AVANCE","Lugar de ejecución","Fecha de inicio de la actividad","Fecha finalización de la actividad","Responsable (nombre completo). Especificar: investigador principal, co-investigador, auxiliar de investigación, estudiante de posgrado, otro.","Indicador","Meta","Evidencia de la actividad","Presupuesto asociado al cumplimiento de la actividad","Rubro","Entidad financiadora del rubro ","Productos de obligatorio cumplimiento generados (anexe el documento final, en construcción o evidencia)","Otros productos (anexe la evidencia)","% de avance de la actividad","% de avance del objetivo alq ue se asocia la actividad",""]
[null,"Fecha de inicio prórroga 1 (Sólo si aplica)",null,null,null,{"$f":"+F18+1","v":9},null,null,{"$f":"+IF(IF(OR(G20=\"\",H20=\"\"),\"\",IFERROR(DMAX(BD_AVANCES!A:H,BD_AVANCES!$A$1,CRONOGRAMA!G19:H20),\"\"))=0,\"\",IF(OR(G20=\"\",H20=\"\"),\"\",IFERROR(DMAX(BD_AVANCES!A:H,BD_AVANCES!$A$1,CRONOGRAMA!G19:H20),\"\")))","v":""},null,null,null,null,null,null,null,null,null,null,null,null,{"$f":"+IFERROR(DGET(BD_AVANCES!A:H,BD_AVANCES!$H$1,CRONOGRAMA!G19:I20),\"\")","v":""},{"$f":"+IFERROR(AVERAGEIFS('PONDERACIÓN ACTIVIDADES'!$G$6:$J$22,'PONDERACIÓN ACTIVIDADES'!$B$6:$E$22,CRONOGRAMA!H20),\"\")","v":""},""]
[null,null,null,null,null,null,"Objetivo específio asociado a la actividad","Actividad o estrategia metodológica empleada para el logro del objetivo específico","FECHA DEL ÚLTIMA AVANCE","Lugar de ejecución","Fecha de inicio de la actividad","Fecha finalización de la actividad","Responsable (nombre completo). Especificar: investigador principal, co-investigador, auxiliar de investigación, estudiante de posgrado, otro.","Indicador","Meta","Evidencia de la actividad","Presupuesto asociado al cumplimiento de la actividad","Rubro","Entidad financiadora del rubro ","Productos de obligatorio cumplimiento generados (anexe el documento final, en construcción o evidencia)","Otros productos (anexe la evidencia)","% de avance de la actividad","% de avance del objetivo alq ue se asocia la actividad",""]
[null,"Fecha de finalización prórroga 1 (Sólo si aplica)",null,null,null,{"$f":"+F20+1","v":10},null,null,{"$f":"+IF(IF(OR(G22=\"\",H22=\"\"),\"\",IFERROR(DMAX(BD_AVANCES!A:H,BD_AVANCES!$A$1,CRONOGRAMA!G21:H22),\"\"))=0,\"\",IF(OR(G22=\"\",H22=\"\"),\"\",IFERROR(DMAX(BD_AVANCES!A:H,BD_AVANCES!$A$1,CRONOGRAMA!G21:H22),\"\")))","v":""},null,null,null,null,null,null,null,null,null,null,null,null,{"$f":"+IFERROR(DGET(BD_AVANCES!A:H,BD_AVANCES!$H$1,CRONOGRAMA!G21:I22),\"\")","v":""},{"$f":"+IFERROR(AVERAGEIFS('PONDERACIÓN ACTIVIDADES'!$G$6:$J$22,'PONDERACIÓN ACTIVIDADES'!$B$6:$E$22,CRONOGRAMA!H22),\"\")","v":""},""]
[null,null,null,null,null,null,"Objetivo específio asociado a la actividad","Actividad o estrategia metodológica empleada para el logro del objetivo específico","FECHA DEL ÚLTIMA AVANCE","Lugar de ejecución","Fecha de inicio de la actividad","Fecha finalización de la actividad","Responsable (nombre completo). Especificar: investigador principal, co-investigador, auxiliar de investigación, estudiante de posgrado, otro.","Indicador","Meta","Evidencia de la actividad","Presupuesto asociado al cumplimiento de la actividad","Rubro","Entidad financiadora del rubro ","Productos de obligatorio cumplimiento generados (anexe el documento final, en construcción o evidencia)","Otros productos (anexe la evidencia)","% de avance de la actividad","% de avance del objetivo alq ue se asocia la actividad",""]
[null,"Fecha de inicio prórroga 2 (Sólo si aplica)",null,null,null,{"$f":"+F22+1","v":11},null,null,{"$f":"+IF(IF(OR(G24=\"\",H24=\"\"),\"\",IFERROR(DMAX(BD_AVANCES!A:H,BD_AVANCES!$A$1,CRONOGRAMA!G23:H24),\"\"))=0,\"\",IF(OR(G24=\"\",H24=\"\"),\"\",IFERROR(DMAX(BD_AVANCES!A:H,BD_AVANCES!$A$1,CRONOGRAMA!G23:H24),\"\")))","v":""},null,null,null,null,null,null,null,null,null,null,null,null,{"$f":"+IFERROR(DGET(BD_AVANCES!A:H,BD_AVANCES!$H$1,CRONOGRAMA!G23:I24),\"\")","v":""},{"$f":"+IFERROR(AVERAGEIFS('PONDERACIÓN ACTIVIDADES'!$G$6:$J$22,'PONDERACIÓN ACTIVIDADES'!$B$6:$E$22,CRONOGRAMA!H24),\"\")","v":""},""]
[null,null,null,null,null,null,"Objetivo específio asociado a la actividad","Actividad o estrategia metodológica empleada para el logro del objetivo específico","FECHA DEL ÚLTIMA AVANCE","Lugar de ejecución","Fecha de inicio de la actividad","Fecha finalización de la actividad","Responsable (nombre completo). Especificar: investigador principal, co-investigador, auxiliar de investigación, estudiante de posgrado, otro.","Indicador","Meta","Evidencia de la actividad","Presupuesto asociado al cumplimiento de la actividad","Rubro","Entidad financiadora del rubro ","Productos de obligatorio cumplimiento generados (anexe el documento final, en construcción o evidencia)","Otros productos (anexe la evidencia)","% de avance de la actividad","% de avance del objetivo alq ue se asocia la actividad",""]
[null,"Fecha de finalización prórroga 2 (Sólo si aplica)",null,null,null,{"$f":"+F24+1","v":12},null,null,{"$f":"+IF(IF(OR(G26=\"\",H26=\"\"),\"\",IFERROR(DMAX(BD_AVANCES!A:H,BD_AVANCES!$A$1,CRONOGRAMA!G25:H26),\"\"))=0,\"\",IF(OR(G26=\"\",H26=\"\"),\"\",IFERROR(DMAX(BD_AVANCES!A:H,BD_AVANCES!$A$1,CRONOGRAMA!G25:H26),\"\")))","v":""},null,null,null,null,null,null,null,null,null,null,null,null,{"$f":"+IFERROR(DGET(BD_AVANCES!A:H,BD_AVANCES!$H$1,CRONOGRAMA!G25:I26),\"\")","v":""},{"$f":"+IFERROR(AVERAGEIFS('PONDERACIÓN ACTIVIDADES'!$G$6:$J$22,'PONDERACIÓN ACTIVIDADES'!$B$6:$E$22,CRONOGRAMA!H26),\"\")","v":""},""]
[null,null,null,null,null,null,"Objetivo específio asociado a la actividad","Actividad o estrategia metodológica empleada para el logro del objetivo específico","FECHA DEL ÚLTIMA AVANCE","Lugar de ejecución","Fecha de inicio de la actividad","Fecha finalización de la actividad","Responsable (nombre completo). Especificar: investigador principal, co-investigador, auxiliar de investigación, estudiante de posgrado, otro.","Indicador","Meta","Evidencia de la actividad","Presupuesto asociado al cumplimiento de la actividad","Rubro","Entidad financiadora del rubro ","Productos de obligatorio cumplimiento generados (anexe el documento final, en construcción o evidencia)","Otros productos (anexe la evidencia)","% de avance de la actividad","% de avance del objetivo alq ue se asocia la actividad",""]
[null,"Entidad financiadora",null,null,null,{"$f":"+F26+1","v":13},null,null,{"$f":"+IF(IF(OR(G28=\"\",H28=\"\"),\"\",IFERROR(DMAX(BD_AVANCES!A:H,BD_AVANCES!$A$1,CRONOGRAMA!G27:H28),\"\"))=0,\"\",IF(OR(G28=\"\",H28=\"\"),\"\",IFERROR(DMAX(BD_AVANCES!A:H,BD_AVANCES!$A$1,CRONOGRAMA!G27:H28),\"\")))","v":""},null,null,null,null,null,null,null,null,null,null,null,null,{"$f":"+IFERROR(DGET(BD_AVANCES!A:H,BD_AVANCES!$H$1,CRONOGRAMA!G27:I28),\"\")","v":""},{"$f":"+IFERROR(AVERAGEIFS('PONDERACIÓN ACTIVIDADES'!$G$6:$J$22,'PONDERACIÓN ACTIVIDADES'!$B$6:$E$22,CRONOGRAMA!H28),\"\")","v":""},""]
[null,null,null,null,null,null,"Objetivo específio asociado a la actividad","Actividad o estrategia metodológica empleada para el logro del objetivo específico","FECHA DEL ÚLTIMA AVANCE","Lugar de ejecución","Fecha de inicio de la actividad","Fecha finalización de la actividad","Responsable (nombre completo). Especificar: investigador principal, co-investigador, auxiliar de investigación, estudiante de posgrado, otro.","Indicador","Meta","Evidencia de la actividad","Presupuesto asociado al cumplimiento de la actividad","Rubro","Entidad financiadora del rubro ","Productos de obligatorio cumplimiento generados (anexe el documento final, en construcción o evidencia)","Otros productos (anexe la evidencia)","% de avance de la actividad","% de avance del objetivo alq ue se asocia la actividad",""]
[null,"Entidad co-financiadora (Sólo si aplica)",null,null,null,{"$f":"+F28+1","v":14},null,null,{"$f":"+IF(IF(OR(G30=\"\",H30=\"\"),\"\",IFERROR(DMAX(BD_AVANCES!A:H,BD_AVANCES!$A$1,CRONOGRAMA!G29:H30),\"\"))=0,\"\",IF(OR(G30=\"\",H30=\"\"),\"\",IFERROR(DMAX(BD_AVANCES!A:H,BD_AVANCES!$A$1,CRONOGRAMA!G29:H30),\"\")))","v":""},null,null,null,null,null,null,null,null,null,null,null,null,{"$f":"+IFERROR(DGET(BD_AVANCES!A:H,BD_AVANCES!$H$1,CRONOGRAMA!G29:I30),\"\")","v":""},{"$f":"+IFERROR(AVERAGEIFS('PONDERACIÓN ACTIVIDADES'!$G$6:$J$22,'PONDERACIÓN ACTIVIDADES'!$B$6:$E$22,CRONOGRAMA!H30),\"\")","v":""},""]
[null,null,null,null,null,null,"Objetivo específio asociado a la actividad","Actividad o estrategia metodológica empleada para el logro del objetivo específico","FECHA DEL ÚLTIMA AVANCE","Lugar de ejecución","Fecha de inicio de la actividad","Fecha finalización de la actividad","Responsable (nombre completo). Especificar: investigador principal, co-investigador, auxiliar de investigación, estudiante de posgrado, otro.","Indicador","Meta","Evidencia de la actividad","Presupuesto asociado al cumplimiento de la actividad","Rubro","Entidad financiadora del rubro ","Productos de obligatorio cumplimiento generados (anexe el documento final, en construcción o evidencia)","Otros productos (anexe la evidencia)","% de avance de la actividad","% de avance del objetivo alq ue se asocia la actividad",""]
[null,"Tipo de convocatoria",null,null,null,{"$f":"+F30+1","v":15},null,null,{"$f":"+IF(IF(OR(G32=\"\",H32=\"\"),\"\",IFERROR(DMAX(BD_AVANCES!A:H,BD_AVANCES!$A$1,CRONOGRAMA!G31:H32),\"\"))=0,\"\",IF(OR(G32=\"\",H32=\"\"),\"\",IFERROR(DMAX(BD_AVANCES!A:H,BD_AVANCES!$A$1,CRONOGRAMA!G31:H32),\"\")))","v":""},null,null,null,null,null,null,null,null,null,null,null,null,{"$f":"+IFERROR(DGET(BD_AVANCES!A:H,BD_AVANCES!$H$1,CRONOGRAMA!G31:I32),\"\")","v":""},{"$f":"+IFERROR(AVERAGEIFS('PONDERACIÓN ACTIVIDADES'!$G$6:$J$22,'PONDERACIÓN ACTIVIDADES'!$B$6:$E$22,CRONOGRAMA!H32),\"\")","v":""},""]
[null,null,null,null,null,null,"Objetivo específio asociado a la actividad","Actividad o estrategia metodológica empleada para el logro del objetivo específico","FECHA DEL ÚLTIMA AVANCE","Lugar de ejecución","Fecha de inicio de la actividad","Fecha finalización de la actividad","Responsable (nombre completo). Especificar: investigador principal, co-investigador, auxiliar de investigación, estudiante de posgrado, otro.","Indicador","Meta","Evidencia de la actividad","Presupuesto asociado al cumplimiento de la actividad","Rubro","Entidad financiadora del rubro ","Productos de obligatorio cumplimiento generados (anexe el documento final, en construcción o evidencia)","Otros productos (anexe la evidencia)","% de avance de la actividad","% de avance del objetivo alq ue se asocia la actividad",""]
[null,"Información de los investigadores",null,null,null,{"$f":"+F32+1","v":16},null,null,{"$f":"+IF(IF(OR(G34=\"\",H34=\"\"),\"\",IFERROR(DMAX(BD_AVANCES!A:H,BD_AVANCES!$A$1,CRONOGRAMA!G33:H34),\"\"))=0,\"\",IF(OR(G34=\"\",H34=\"\"),\"\",IFERROR(DMAX(BD_AVANCES!A:H,BD_AVANCES!$A$1,CRONOGRAMA!G33:H34),\"\")))","v":""},null,null,null,null,null,null,null,null,null,null,null,null,{"$f":"+IFERROR(DGET(BD_AVANCES!A:H,BD_AVANCES!$H$1,CRONOGRAMA!G33:I34),\"\")","v":""},{"$f":"+IFERROR(AVERAGEIFS('PONDERACIÓN ACTIVIDADES'!$G$6:$J$22,'PONDERACIÓN ACTIVIDADES'!$B$6:$E$22,CRONOGRAMA!H34),\"\")","v":""},""]
[null,null,null,null,null,null,"Objetivo específio asociado a la actividad","Actividad o estrategia metodológica empleada para el logro del objetivo específico","FECHA DEL ÚLTIMA AVANCE","Lugar de ejecución","Fecha de inicio de la actividad","Fecha finalización de la actividad","Responsable (nombre completo). Especificar: investigador principal, co-investigador, auxiliar de investigación, estudiante de posgrado, otro.","Indicador","Meta","Evidencia de la actividad","Presupuesto asociado al cumplimiento de la actividad","Rubro","Entidad financiadora del rubro ","Productos de obligatorio cumplimiento generados (anexe el documento final, en construcción o evidencia)","Otros productos (anexe la evidencia)","% de avance de la actividad","% de avance del objetivo alq ue se asocia la actividad",""]
[null,"Nombre de investigador principal",null,null,null,{"$f":"+F34+1","v":17},null,null,{"$f":"+IF(IF(OR(G36=\"\",H36=\"\"),\"\",IFERROR(DMAX(BD_AVANCES!A:H,BD_AVANCES!$A$1,CRONOGRAMA!G35:H36),\"\"))=0,\"\",IF(OR(G36=\"\",H36=\"\"),\"\",IFERROR(DMAX(BD_AVANCES!A:H,BD_AVANCES!$A$1,CRONOGRAMA!G35:H36),\"\")))","v":""},null,null,null,null,null,null,null,null,null,null,null,null,{"$f":"+IFERROR(DGET(BD_AVANCES!A:H,BD_AVANCES!$H$1,CRONOGRAMA!G35:I36),\"\")","v":""},{"$f":"+IFERROR(AVERAGEIFS('PONDERACIÓN ACTIVIDADES'!$G$6:$J$22,'PONDERACIÓN ACTIVIDADES'!$B$6:$E$22,CRONOGRAMA!H36),\"\")","v":""},""]
[null,null,null,null,null,null,"Objetivo específio asociado a la actividad","Actividad o estrategia metodológica empleada para el logro del objetivo específico","FECHA DEL ÚLTIMA AVANCE","Lugar de ejecución","Fecha de inicio de la actividad","Fecha finalización de la actividad","Responsable (nombre completo). Especificar: investigador principal, co-investigador, auxiliar de investigación, estudiante de posgrado, otro.","Indicador","Meta","Evidencia de la actividad","Presupuesto asociado al cumplimiento de la actividad","Rubro","Entidad financiadora del rubro ","Productos de obligatorio cumplimiento generados (anexe el documento final, en construcción o evidencia)","Otros productos (anexe la evidencia)","% de avance de la actividad","% de avance del objetivo alq ue se asocia la actividad",""]
[null,"Cédula del Investigador principal",null,null,null,{"$f":"+F36+1","v":18},null,null,{"$f":"+IF(IF(OR(G38=\"\",H38=\"\"),\"\",IFERROR(DMAX(BD_AVANCES!A:H,BD_AVANCES!$A$1,CRONOGRAMA!G37:H38),\"\"))=0,\"\",IF(OR(G38=\"\",H38=\"\"),\"\",IFERROR(DMAX(BD_AVANCES!A:H,BD_AVANCES!$A$1,CRONOGRAMA!G37:H38),\"\")))","v":""},null,null,null,null,null,null,null,null,null,null,null,null,{"$f":"+IFERROR(DGET(BD_AVANCES!A:H,BD_AVANCES!$H$1,CRONOGRAMA!G37:I38),\"\")","v":""},{"$f":"+IFERROR(AVERAGEIFS('PONDERACIÓN ACTIVIDADES'!$G$6:$J$22,'PONDERACIÓN ACTIVIDADES'!$B$6:$E$22,CRONOGRAMA!H38),\"\")","v":""},""]
[null,null,null,null,null,null,"Objetivo específio asociado a la actividad","Actividad o estrategia metodológica empleada para el logro del objetivo específico","FECHA DEL ÚLTIMA AVANCE","Lugar de ejecución","Fecha de inicio de la actividad","Fecha finalización de la actividad","Responsable (nombre completo). Especificar: investigador principal, co-investigador, auxiliar de investigación, estudiante de posgrado, otro.","Indicador","Meta","Evidencia de la actividad","Presupuesto asociado al cumplimiento de la actividad","Rubro","Entidad financiadora del rubro ","Productos de obligatorio cumplimiento generados (anexe el documento final, en construcción o evidencia)","Otros productos (anexe la evidencia)","% de avance de la actividad","% de avance del objetivo alq ue se asocia la actividad",""]
[null,"Facultad a la qu pertenece el Investigador principal_1",null,null,null,{"$f":"+F38+1","v":19},null,null,{"$f":"+IF(IF(OR(G40=\"\",H40=\"\"),\"\",IFERROR(DMAX(BD_AVANCES!A:H,BD_AVANCES!$A$1,CRONOGRAMA!G39:H40),\"\"))=0,\"\",IF(OR(G40=\"\",H40=\"\"),\"\",IFERROR(DMAX(BD_AVANCES!A:H,BD_AVANCES!$A$1,CRONOGRAMA!G39:H40),\"\")))","v":""},null,null,null,null,null,null,null,null,null,null,null,null,{"$f":"+IFERROR(DGET(BD_AVANCES!A:H,BD_AVANCES!$H$1,CRONOGRAMA!G39:I40),\"\")","v":""},{"$f":"+IFERROR(AVERAGEIFS('PONDERACIÓN ACTIVIDADES'!$G$6:$J$22,'PONDERACIÓN ACTIVIDADES'!$B$6:$E$22,CRONOGRAMA!H40),\"\")","v":""},""]
[null,null,null,null,null,null,"Objetivo específio asociado a la actividad","Actividad o estrategia metodológica empleada para el logro del objetivo específico","FECHA DEL ÚLTIMA AVANCE","Lugar de ejecución","Fecha de inicio de la actividad","Fecha finalización de la actividad","Responsable (nombre completo). Especificar: investigador principal, co-investigador, auxiliar de investigación, estudiante de posgrado, otro.","Indicador","Meta","Evidencia de la actividad","Presupuesto asociado al cumplimiento de la actividad","Rubro","Entidad financiadora del rubro ","Productos de obligatorio cumplimiento generados (anexe el documento final, en construcción o evidencia)","Otros productos (anexe la evidencia)","% de avance de la actividad","% de avance del objetivo alq ue se asocia la actividad",""]
[null,"Horas de dedicación/semana para el proyecto",null,null,null,{"$f":"+F40+1","v":20},null,null,{"$f":"+IF(IF(OR(G42=\"\",H42=\"\"),\"\",IFERROR(DMAX(BD_AVANCES!A:H,BD_AVANCES!$A$1,CRONOGRAMA!G41:H42),\"\"))=0,\"\",IF(OR(G42=\"\",H42=\"\"),\"\",IFERROR(DMAX(BD_AVANCES!A:H,BD_AVANCES!$A$1,CRONOGRAMA!G41:H42),\"\")))","v":""},null,null,null,null,null,null,null,null,null,null,null,null,{"$f":"+IFERROR(DGET(BD_AVANCES!A:H,BD_AVANCES!$H$1,CRONOGRAMA!G41:I42),\"\")","v":""},{"$f":"+IFERROR(AVERAGEIFS('PONDERACIÓN ACTIVIDADES'!$G$6:$J$22,'PONDERACIÓN ACTIVIDADES'!$B$6:$E$22,CRONOGRAMA!H42),\"\")","v":""},""]
[]
[null,"Nombre de co-investigador_1"]
[null,"Horas de dedicación/semana para el proyecto_co-investigador_1"]
[null,"Nombre de co-investigador_2"]
[null,"Horas de dedicación/semana para el proyecto_co-investigador_2"]
[null,"Nombre de co-investigador_3"]
[null,"Horas de dedicación/semana para el proyecto_co-investigador_3"]
[null,"Nombre de co-investigador_4"]
[null,"Nombre de auxiliar de investigación_1 (estudiantes que participan en el proyecto)"]
[null,"Nivel académico auxiliar_1"]
[null,"Facultad a la qu pertenece el auxiliar_1"]
[null,"Programa académico auxiliar_1"]
[null,"Nombre de auxiliar de investigación_2 (estudiantes que participan en el proyecto)"]
[null,"Nivel académico auxiliar_2"]
[null,"Facultad a la qu pertenece el auxiliar_2"]
[null,"Programa académico auxiliar_2"]
[null,"Nombre de auxiliar de investigación_3 (estudiantes que participan en el proyecto)"]
[null,"Nivel académico auxiliar_3"]
[null,"Facultad a la qu pertenece el auxiliar_3"]
[null,"Nivel académico auxiliar_3"]

{"sheet":"PONDERACIÓN ACTIVIDADES","index":3,"n_rows":24,"n_cols":11,"rows_kept":24,"cut":false,"hidden":false,"merged":[[0,6,0,9],[23,1,23,4],[23,6,23,9],[6,10,7,12]]}
[null,"OBJETIVO 1","OBJETIVO 2","OBJETIVO 3","OBJETIVO 4",null,"PONDERACIÓN DE ACTIVIDADES"]
[null,{"$f":"+TRANSPOSE('PONDERACIÓN OBJETIVOS'!B3:B6)","v":0},0,0,0,null,{"$f":"+SUM(G6:G22)","v":0},{"$f":"+SUM(H6:H22)","v":0},0,0]
[null,{"$f":"+COUNTA(B6:B22)","v":1},{"$f":"+COUNTA(C6:C22)","v":0},0,0]
[null,0,1,2,3]
[]
["ACT 1","s"]
["ACT 2",null,null,null,null,null,null,null,null,null,"Ahora continúe diligenciando el cronograma. \n\nDar clic en el botón \"Cronograma\""]
["ACT 3"]
["ACT 4"]
["ACT 5"]
["ACT 6"]
["ACT 7"]
["ACT 8"]
["ACT 9"]
["ACT 10"]
["ACT 11"]
["ACT 12"]
["ACT 13"]
["ACT 14"]
["ACT 15"]
["ACT 16"]
["ACT 17"]
[]
[null,"En este formulario debe ingresar cada una de las actividades de su proyecto que le permitirán el cumplimiento de los objetivos.\nEscriba debajo de cada objetivo las actividades correspondientes",null,null,null,null,"En este espacio debe ingresar el porcentaje que usted considera que pesa su actividad dentro de cada objetivo.\nRecuerde que la suma de la ponderación de las actividades por cada objetivo no debe sumar mas de 100%"]

{"sheet":"PONDERACIÓN OBJETIVOS","index":4,"n_rows":8,"n_cols":5,"rows_kept":8,"cut":false,"hidden":false,"merged":[[7,1,8,1],[0,0,0,2],[2,3,5,3]]}
["Objetivos Específicos del Proyecto"]
["OBJ","DESCRIPCIÓN","VALOR PONDERADO"]
["OBJ 1",null,0,"En este espacio debe asignar el peso del objetivo específico dentro de su proyecto.\nRecuerde que la suma no debe ser superior a 100%"]
["OBJ 2",null,0,null,"Nombre del proyecto"]
["OBJ 3",null,0,null,"Objetivo General"]
["OBJ 4",null,0]
[null,null,{"$f":"+SUM(C3:C6)","v":0}]
[null,"Por favor continúe Ingrensado las actividades.\nDar Clic en el botón \"Ingresar Actividades\""]

{"sheet":"FORM_AVANCES","index":5,"n_rows":11,"n_cols":11,"rows_kept":11,"cut":false,"hidden":false,"merged":[[1,1,1,2],[7,4,10,7]]}
[]
[null,"REGISTRO DE AVANCES",null,null,null,null,null,null,null,"Objetivo específio asociado a la actividad","Actividad o estrategia metodológica empleada para el logro del objetivo específico"]
[null,null,null,null,null,null,null,null,null,{"$f":"+C6","v":0},{"$f":"+C7","v":0}]
[null,"FECHA"]
[null,"PROYECTO",{"$f":"+CRONOGRAMA!C4","v":0}]
[null,"OBJETIVO"]
[null,"ACTIVIDAD"]
[null,"INDICADOR",null,{"$f":"+IFERROR(DGET(CRONOGRAMA!$G$3:$W$1048576,CRONOGRAMA!N3,FORM_AVANCES!J2:K3),\"\")","v":""},"En este formulario debe describir por cada actividad los avances generados en el desarrollo del proyecto.\nUna vez diligenciada toda la información debe guardar, enviarla a la Vicerrectoría de Investigación con los respectivos anexos de evidencias"]
[null,"DESCRIPCIÓN"]
[null,"EVIDENCIA"]
[null,"AVANCE (escriba el porcentaje de avance de la actividad)"]

{"sheet":"CONSULTA","index":6,"n_rows":10,"n_cols":3,"rows_kept":10,"cut":false,"hidden":true,"merged":[[1,1,1,2]]}
[]
[null,"REGISTRO DE AVANCES"]
[null,"PROYECTO","P1"]
[null,"OBJETIVO","OB1"]
[null,"ACTIVIDAD","ACT4"]
[null,"FECHA","2019-05-19"]
[null,"INDICADOR","ARTICULO"]
[null,"AVANCE",1]
[null,"META"]
[null,"PORCENTAJE DE AVANCE DE ACUERDO A LA META"]

{"sheet":"BD_AVANCES","index":7,"n_rows":1,"n_cols":8,"rows_kept":1,"cut":false,"hidden":false,"merged":[]}
["FECHA DEL ÚLTIMA AVANCE","PROYECTO","Objetivo específio asociado a la actividad","Actividad o estrategia metodológica empleada para el logro del objetivo específico","INDICADOR","DESCRIPCIÓN","EVIDENCIA","AVANCE"]